fUSD/lending_fUSD_20250826
["ID","MTS","AMOUNT","RATE_DAILY","PERIOD"]
[381492717,1756230827342,-1268.24,0.00029863,5]
[381492718,1756230827352,-2660.08,0.00029863,5]
[381492719,1756230827362,-870.23,0.00029863,5]
[381492720,1756230827371,-1218.74,0.00029863,5]
[381492721,1756230827380,-960.42,0.00029863,5]
[381492722,1756230827390,-727.24,0.00029863,5]
[381492723,1756230827400,-836.11,0.00029863,5]
[381492724,1756230827409,-1206.86,0.00029863,5]
[381492725,1756230827419,-400.0,0.00029863,5]
[381492726,1756230827428,-1646.5,0.00029863,5]
[381492727,1756230827438,-2007.01231526,0.00029863,5]
[381492728,1756230827487,-153.0,0.00019895,2]
[381492729,1756230827496,-4596.12997,0.00027397,7]
[381492730,1756230827506,-400.0,0.00027671,5]
[381492731,1756230827515,-786.58,0.00028219,5]
[381492732,1756230827525,-1592.29,0.00028767,5]
[381492733,1756230827535,-760.31,0.00029041,5]
[381492734,1756230827544,-1631.87716768,0.00029863,5]
[381492735,1756230827579,-153.0,0.00019895,2]
[381492736,1756230827588,-400.0,0.00027397,5]
[381492737,1756230827597,-400.0,0.00028493,5]
[381492738,1756230827607,-1694.63051706,0.00029863,5]
[381492739,1756230827616,-935.16,0.00029863,5]
[381492740,1756230827625,-696.66,0.00029863,5]
[381492741,1756230827635,-446.0,0.00029863,5]
[381492742,1756230827644,-400.0,0.00029863,5]
[381492743,1756230827654,-859.49,0.00029863,5]
[381492744,1756230827663,-1578.12,0.00029863,5]
[381492745,1756230827672,-928.83,0.00029863,5]
[381492746,1756230827681,-1272.58,0.00029863,5]
[381492747,1756230827692,-359.68456762,0.00029863,5]
[381492748,1756230864068,238.15,0.00013699,2]
[381492809,1756231660245,500.0,0.00013699,2]
[381492810,1756231660508,150.0,0.00014199,3]
[381492825,1756231759845,237.58,0.00013699,2]
[381492844,1756231831421,-165.25122969,0.00015068,2]
[381492846,1756231831431,-150.0,0.0001509,2]
[381492847,1756231831441,-150.0,0.00015111,2]
[381492848,1756231831450,-30.4047703,0.00015202,2]
[381492849,1756231831474,-119.5952297,0.00015202,2]
[381492850,1756231831484,-521.0,0.00016437,2]
[381492851,1756231831493,-300.0,0.00016437,2]
[381492852,1756231831503,-173.559573,0.00016438,2]
[381492853,1756231831512,-150.0,0.00016575,2]
[381492854,1756231831521,-150.0,0.00016575,2]
[381492855,1756231831530,-377.46045985,0.00016575,3]
[381492856,1756231831557,-622.53954015,0.00016575,3]
[381492857,1756231831577,-173.559573,0.00016712,2]
[381492858,1756231831597,-1200.0,0.00017888,2]
[381492859,1756231831618,-151.0,0.00017889,2]
[381492860,1756231831633,-151.0,0.00017889,2]
[381492861,1756231831644,-151.0,0.00017889,2]
[381492862,1756231831653,-151.0,0.00017889,2]
[381492863,1756231831662,-136.29930263,0.00017889,2]
[381492864,1756231831674,-14.70069737,0.00017889,2]
[381492865,1756231831683,-151.0,0.00017889,2]
[381492866,1756231831692,-151.0,0.00017889,2]
[381492867,1756231831702,-127.71780263,0.00017889,2]
[381492868,1756231831717,-23.28219737,0.00017889,2]
[381492869,1756231831727,-232.36707153,0.00017889,2]
[381492870,1756231831736,-549.90017012,0.000179,2]
[381492871,1756231831748,-352.74248147,0.000179,2]
[381492872,1756231831758,-2861.11734841,0.000179,2]
[381492873,1756231831767,-10542.45667785,0.000179,2]
[381492874,1756231831778,-1000.0,0.000179,2]
[381492875,1756231831800,-2172.61832636,0.000179,2]
[381492876,1756231831812,-2000.0,0.000179,2]
[381492877,1756231831824,-4146.17998158,0.000179,2]
[381492878,1756231831866,-347.89510395,0.000179,2]
[381492879,1756231831998,-6100.0,0.000179,2]
[381492880,1756231832010,-3218.35621182,0.000179,2]
[381492883,1756231832026,-472.48369844,0.000179,2]
[381492885,1756231832036,-114.03171634,0.00017963,2]
[381492887,1756231832047,-305.96828366,0.00017963,2]
[381492889,1756231832058,-151.0,0.00019178,2]
[381492891,1756231832067,-150.0,0.00019178,2]
[381492893,1756231832076,-134.50948112,0.00019438,2]
[381492895,1756231832087,-188.10121888,0.00019438,2]
[381492897,1756231832097,-467.46983111,0.00019438,2]
[381492899,1756231832117,-2057.35958306,0.00019438,2]
[381492900,1756231832126,-267.46074303,0.00019438,2]
[381492901,1756231832135,-1000.0,0.00019452,2]
[381492902,1756231832144,-1000.0,0.00019452,2]
[381492903,1756231832153,-1000.0,0.00019452,2]
[381492904,1756231832163,-588.30453535,0.00019452,2]
[381492905,1756231832172,-2286.04864728,0.00019493,2]
[381492906,1756231832181,-587.0,0.00019631,2]
[381492907,1756231832191,-192.00799701,0.00019726,2]
[381492908,1756231832200,-257.06448674,0.00019895,2]
[381492909,1756231832209,-250.0,0.0001991,2]
[381492910,1756231832219,-237.58,0.00020187,2]
[381492911,1756231832228,-334.5472959,0.00020807,2]
[381492912,1756231832237,-277.35679052,0.00020807,2]
[381492913,1756231832247,-823.0,0.00021454,2]
[381492914,1756231832256,-600.0,0.00021616,2]
[381492915,1756231832265,-183.73,0.00022071,2]
[381492916,1756231832275,-393.78,0.000221,2]
[381492917,1756231832284,-600.0,0.00022164,2]
[381492918,1756231832293,-346.92554585,0.00022176,2]
[381492919,1756231832302,-287.61899177,0.00022176,2]
[381492920,1756231832311,-600.0,0.00022712,2]
[381492921,1756231832319,-160.0,0.00022786,7]
[381492922,1756231832330,-1301.73,0.00023,2]
[381492923,1756231832340,-185.23,0.00023243,2]
[381492924,1756231832349,-600.0,0.0002326,2]
[381492925,1756231832361,-1152.0,0.00023446,2]
[381492926,1756231832370,-267.31414011,0.00023457,2]
[381492931,1756231837332,-126.46585989,0.00023457,2]
[381492932,1756231837341,-359.76179104,0.00023545,2]
[381492933,1756231837350,-298.26089446,0.00023545,2]
[381492934,1756231837360,-4.51709094,0.00023589,2]
[381492935,1756231837371,-995.48290906,0.00023589,2]
[381492936,1756231837380,-3319.67749565,0.00023772,2]
[381492937,1756231837490,-1680.32250435,0.00023772,2]
[381492938,1756231837500,-600.0,0.00023808,2]
[381492939,1756231837511,-250.0,0.00023892,2]
[381492940,1756231837520,-150.0,0.00023949,2]
[381492941,1756231837529,-200.0,0.000241,7]
[381492942,1756231837539,-600.0,0.00024356,2]
[381492943,1756231837549,-1000.0,0.00024658,2]
[381492944,1756231837560,-500.0,0.00024899,2]
[381492945,1756231837570,-500.0,0.00024899,2]
[381492946,1756231837580,-464.5062152,0.00024899,2]
[381492947,1756231837590,-498.37305842,0.000249,2]
[381492948,1756231837619,-640.59236158,0.000249,2]
[381492949,1756231837643,-15063.19446083,0.000249,2]
[381493150,1756231839498,-2206.75,0.000249,2]
[381493156,1756231839556,-586.23133676,0.000249,2]
[381493171,1756231839684,-307.2432604,0.000249,2]
[381493173,1756231839696,-296.21904002,0.000249,2]
[381493175,1756231839705,-366.00095998,0.00024904,2]
[381493177,1756231839717,-233.99904002,0.00024904,2]
[381493179,1756231839726,-219.98095998,0.00024914,2]
[381493181,1756231839738,-153.09201733,0.00024914,2]
[381493183,1756231839748,-309.29654756,0.00024914,2]
[381493185,1756231839758,-393.78,0.00024915,2]
[381493187,1756231839767,-127.49083511,0.00025014,10]
[381493189,1756231839779,-2636.53336489,0.00025014,10]
[381493191,1756231839788,-200.0,0.000251,7]
[381493193,1756231839797,-527.0,0.00025151,2]
[381493195,1756231839806,-150.0,0.00025373,4]
[381493197,1756231839815,-150.14329949,0.00025373,4]
[381493199,1756231839825,-150.0,0.00025373,4]
[381493201,1756231839834,-150.17058537,0.00025373,4]
[381493203,1756231839844,-150.0,0.00025373,4]
[381493205,1756231839854,-150.0,0.00025373,4]
[381493207,1756231839863,-150.0,0.00025373,4]
[381493209,1756231839871,-150.0,0.00025373,4]
[381493211,1756231839880,-150.0,0.00025373,4]
[381493213,1756231839889,-150.0,0.00025373,4]
[381493215,1756231839898,-150.15726471,0.00025373,4]
[381493217,1756231839907,-150.43948768,0.00025373,4]
[381493219,1756231839916,-150.60071658,0.00025373,4]
[381493221,1756231839925,-150.0,0.00025373,4]
[381493223,1756231839934,-150.0,0.00025373,4]
[381493225,1756231839944,-150.0,0.00025373,4]
[381493227,1756231839953,-155.32570917,0.00025373,4]
[381493229,1756231839961,-150.0,0.00025373,4]
[381493231,1756231839970,-600.0,0.00025452,2]
[381493233,1756231839979,-844.63891918,0.00025597,3]
[381493235,1756231839988,-160.0,0.00025597,3]
[381493237,1756231839997,-212.18043798,0.00025597,3]
[381493239,1756231840006,-19598.60351774,0.00025597,3]
[381493241,1756231840017,-1613.0,0.00025622,2]
[381493243,1756231840027,-509.0,0.00025767,2]
[381493245,1756231840037,-150.0,0.00025775,4]
[381493247,1756231840046,-500.0,0.00025781,2]
[381493249,1756231840055,-168.0,0.0002597,2]
[381493251,1756231840066,-600.0,0.00026,2]
[381493252,1756231840076,-168.0,0.0002605,2]
[381493253,1756231840085,-150.0,0.00026178,4]
[381493254,1756231840094,-168.0,0.0002622,2]
[381493255,1756231840103,-168.0,0.00026253,2]
[381493256,1756231840112,-153.84662005,0.00026283,2]
[381493257,1756231840121,-320.74051982,0.00026283,2]
[381493258,1756231840130,-19598.60351774,0.00026293,5]
[381493259,1756231840138,-500.0,0.00026317,2]
[381493260,1756231840147,-393.78,0.00026372,7]
[381493261,1756231840156,-168.0,0.00026379,2]
[381493262,1756231840165,-168.0,0.00026479,2]
[381493263,1756231840174,-1000.0,0.00026538,2]
[381493264,1756231840184,-600.0,0.00026548,2]
[381493265,1756231840193,-150.0,0.00026581,4]
[381493266,1756231840202,-183.73,0.00026638,2]
[381493267,1756231840212,-237.58,0.00026676,2]
[381493268,1756231840221,-600.0,0.000267,9]
[381493269,1756231840230,-168.0,0.00026719,2]
[381493270,1756231840239,-930.91712737,0.000268,2]
[381493271,1756231840249,-1200.0,0.000268,9]
[381493272,1756231840258,-168.0,0.00026802,2]
[381493274,1756231840267,-2514.9933,0.0002689,2]
[381493276,1756231840276,-1900.0,0.000269,9]
[381493277,1756231840286,-168.0,0.00026926,2]
[381493279,1756231840295,-150.0,0.00026984,4]
[381493281,1756231840304,-19598.60351774,0.0002699,6]
[381493283,1756231840313,-744.0,0.00027,2]
[381493285,1756231840322,-930.91712732,0.00027007,2]
[381493287,1756231840331,-3600.18,0.00027123,2]
[381493289,1756231840341,-930.91712732,0.00027215,2]
[381493291,1756231840351,-26513.35424116,0.00027244,2]
[381493293,1756231840360,-265.87235195,0.00027287,2]
[381493295,1756231840369,-152.20709055,0.00027296,2]
[381493297,1756231840378,-5000.0,0.00027297,2]
[381493299,1756231840387,-214.32,0.00027377,2]
[381493301,1756231840396,-189.98573608,0.00027386,2]
[381493303,1756231840405,-220.30574443,0.00027386,2]
[381493305,1756231840415,-500.0,0.00027386,2]
[381493307,1756231840424,-169.11631442,0.00027386,2]
[381493309,1756231840433,-500.0,0.00027386,2]
[381493311,1756231840442,-180.85874395,0.00027386,2]
[381493313,1756231840451,-150.0,0.00027386,4]
[381493315,1756231840460,-107603.60724812,0.00027387,2]
[381493318,1756231840479,-6996.934,0.00027387,2]
[381493320,1756231840490,-41900.0,0.00027387,2]
[381493415,1756231842572,-108.76341582,0.00025597,3]
[381493654,1756231845467,-350.00281798,0.00025597,3]
[381493656,1756231845477,-21691.51099851,0.00027387,2]
[381493662,1756231845522,-89956.06014693,0.00027387,2]
[381493664,1756231845533,-4682.3915931,0.00027387,2]
[381493671,1756231845591,-2441.12559105,0.00027387,2]
[381493843,1756231923358,1000.0,0.000253,120]
[381493844,1756231923433,1000.0,0.0002395,120]
[381493846,1756232025202,500.0,0.00013699,2]
[381493847,1756232044249,1000.0,0.00021096,120]
[381493848,1756232044373,1000.0,0.00021089,120]
[381493888,1756232898233,301.79011379,0.000125,2]
[381493889,1756232898283,369.19571865,0.000135,2]
[381493940,1756233031901,-540.0,0.000154,2]
[381493941,1756233031911,-150.0,0.00015976,2]
[381493942,1756233031920,-162.99687758,0.00016552,2]
[381493943,1756233031929,-85.31725885,0.00016652,2]
[381493944,1756233031940,-64.68274115,0.00016652,2]
[381493945,1756233031950,-150.0,0.0001694,2]
[381493946,1756233031961,-150.0,0.0001694,2]
[381493947,1756233031971,-150.0,0.0001694,2]
[381493948,1756233031982,-400.0,0.000172,6]
[381493949,1756233031992,-900.0,0.000173,6]
[381493950,1756233032001,-1300.0,0.000174,6]
[381493951,1756233032010,-1800.0,0.000175,6]
[381493952,1756233032019,-2200.0,0.000176,6]
[381493953,1756233032029,-400.0,0.000177,6]
[381493954,1756233032039,-1252.58,0.000177,2]
[381493955,1756233032050,-400.0,0.000178,6]
[381493956,1756233032059,-400.0,0.000179,6]
[381493957,1756233032068,-183.99895449,0.000179,3]
[381493959,1756233032078,-1483.16835119,0.00017903,2]
[381493961,1756233032088,-500.0,0.00017973,2]
[381493963,1756233032097,-500.0,0.00017973,2]
[381493965,1756233032106,-150.0,0.00017999,2]
[381493967,1756233032117,-500.0,0.00017999,2]
[381493969,1756233032126,-154.2140211,0.00017999,2]
[381493971,1756233032135,-326.60112076,0.00017999,2]
[381493973,1756233032144,-863.29634267,0.00018,2]
[381493975,1756233032153,-143960.11086976,0.00018,2]
[381493993,1756233033244,-11075.98511339,0.00018,2]
[381493994,1756233033273,-21361.76587028,0.00018,2]
[381493995,1756233033285,-55369.50288559,0.00018,2]
[381493996,1756233033304,-561.68586357,0.00018,2]
[381493997,1756233037626,-353.83626,0.00018,2]
[381493998,1756233037787,-252.05980301,0.00018,2]
[381494053,1756233039795,-4247.38417856,0.00018,2]
[381494054,1756233039807,-155.3578525,0.00018,2]
[381494055,1756233039817,-3658.31683762,0.00018,2]
[381494056,1756233039831,-42666.55495209,0.00018,2]
[381494057,1756233039942,-1140.76848956,0.00018,2]
[381494058,1756233040027,-963.36253807,0.00018,2]
[381494059,1756233040091,-4876220.97376462,0.00018,2]
[381494063,1756233042812,-888.0,0.00018,2]
[381494064,1756233042865,-537.25750108,0.00018,2]
[381494065,1756233042921,-127618.50065678,0.00018,2]
[381494066,1756233043029,-860.57962075,0.00018,2]
[381494217,1756233045743,-20417.55577185,0.00018,2]
[381494218,1756233045852,-127528.04986388,0.00018,2]
[381494219,1756233046105,-11947.79004934,0.00018,2]
[381494220,1756233046118,-4783.2,0.00018,2]
[381494221,1756233046133,-1158.8000001,0.00018,2]
[381494232,1756233129109,263.85,0.00013699,2]
[381494233,1756233129420,150.0,0.00013698,3]
[381494245,1756233396568,250.0,0.00015,2]
[381494252,1756233469393,500.0,0.00013699,2]
[381494253,1756233469798,150.0,0.00014199,3]
[381494257,1756233552298,1469.67594334,0.00014,2]
[381494258,1756233552568,150.0,0.000145,3]
[381494303,1756234083785,7.90822422,0.00013699,2]
[381494304,1756234083809,265.42177578,0.00013699,2]
[381494305,1756234084056,150.0,0.00014199,3]
[381494320,1756234232571,-150.0,0.0001637,2]
[381494321,1756234232580,-300.0,0.00016439,3]
[381494322,1756234232590,-150.0,0.00016545,2]
[381494323,1756234232600,-250.0,0.00016545,2]
[381494324,1756234232609,-150.0,0.0001672,2]
[381494325,1756234232619,-190.39,0.00016903,2]
[381494326,1756234232628,-1000.0,0.00016918,2]
[381494327,1756234232638,-187.32,0.00016968,2]
[381494329,1756234232647,-155.4,0.00016977,2]
[381494330,1756234232657,-200.0,0.000172,6]
[381494331,1756234232666,-500.0,0.000173,6]
[381494332,1756234232675,-700.0,0.000174,6]
[381494333,1756234232685,-948.0,0.00017422,2]
[381494334,1756234232694,-641.0,0.00017422,2]
[381494335,1756234232705,-1200.0,0.00017499,2]
[381494336,1756234232717,-1000.0,0.000175,6]
[381494337,1756234232726,-160.0,0.00017535,7]
[381494338,1756234232735,-1200.0,0.000176,6]
[381494339,1756234232744,-300.0,0.00017609,2]
[381494340,1756234232754,-150.0,0.0001761,2]
[381494341,1756234232764,-1000.0,0.0001761,3]
[381494342,1756234232774,-318.0,0.00017622,2]
[381494343,1756234232783,-157.0,0.00017678,2]
[381494344,1756234232794,-581.0,0.00017698,2]
[381494345,1756234232805,-1500.0,0.00017698,2]
[381494346,1756234232821,-200.0,0.000177,6]
[381494347,1756234232830,-313.14,0.000177,2]
[381494348,1756234232840,-1192.0,0.0001771,2]
[381494349,1756234232849,-1177.49,0.00017728,2]
[381494350,1756234232858,-152.44442618,0.000178,2]
[381494351,1756234232867,-200.0,0.000178,6]
[381494352,1756234232877,-880.68629776,0.00017804,2]
[381494353,1756234232886,-2991.40735,0.0001782,2]
[381494354,1756234232896,-361.0,0.0001785,2]
[381494355,1756234232905,-500.0,0.00017889,2]
[381494356,1756234232914,-151.0,0.00017889,2]
[381494357,1756234232924,-188.325,0.00017899,2]
[381494358,1756234232933,-5800.0,0.000179,2]
[381494359,1756234232942,-654.44584177,0.000179,3]
[381494360,1756234232951,-27700.93599358,0.000179,2]
[381494361,1756234232975,-500.0,0.000179,2]
[381494362,1756234232986,-556.92925908,0.000179,2]
[381494363,1756234233038,-2000.0,0.000179,2]
[381494364,1756234233049,-14857.18865005,0.000179,2]
[381494365,1756234233061,-287.44003504,0.000179,2]
[381494366,1756234233093,-5887.172966,0.000179,2]
[381494367,1756234233114,-847.87333955,0.000179,2]
[381494378,1756234237974,-650.0,0.000179,2]
[381494379,1756234237986,-912.57417974,0.000179,2]
[381494380,1756234237998,-5746.5936,0.000179,2]
[381494381,1756234238132,-1937.38415492,0.000179,2]
[381494382,1756234238143,-67751.12086009,0.000179,2]
[381494383,1756234238167,-88746.64267291,0.000179,2]
[381494384,1756234238178,-3666.62054605,0.000179,2]
[381494386,1756234238188,-200.0,0.000179,6]
[381494388,1756234238197,-2709.06737257,0.000179,2]
[381494390,1756234238207,-87010.76668675,0.000179,2]
[381494392,1756234238217,-409.6743309,0.000179,2]
[381494394,1756234238227,-233.06534237,0.000179,3]
[381494396,1756234238236,-152.44442618,0.000179,2]
[381494398,1756234238245,-3217.8190151,0.000179,2]
[381494400,1756234238255,-1465.0,0.00017912,2]
[381494402,1756234238264,-383.49,0.00017931,2]
[381494404,1756234238274,-500.0,0.00017944,2]
[381494406,1756234238283,-169.34477998,0.00017973,2]
[381494409,1756234238293,-159.79360763,0.00017973,2]
[381494411,1756234238302,-500.0,0.00017973,2]
[381494413,1756234238312,-500.0,0.00017973,2]
[381494415,1756234238322,-500.0,0.00017973,2]
[381494417,1756234238331,-553.14101107,0.00017973,2]
[381494419,1756234238340,-500.0,0.00017973,2]
[381494421,1756234238350,-500.0,0.00017973,2]
[381494423,1756234238359,-500.0,0.00017973,2]
[381494426,1756234238369,-436.84185686,0.00017973,2]
[381494428,1756234238378,-269.29286367,0.00017973,2]
[381494430,1756234238387,-500.0,0.00017973,2]
[381494432,1756234238397,-500.0,0.00017973,2]
[381494434,1756234238406,-500.0,0.00017973,2]
[381494435,1756234238415,-500.0,0.00017973,2]
[381494437,1756234238424,-186.6772171,0.0001799,2]
[381494439,1756234238434,-186.6772171,0.0001799,2]
[381494441,1756234238443,-186.6772171,0.0001799,2]
[381494443,1756234238453,-4144.19488615,0.00017997,2]
[381494445,1756234238462,-300.0,0.00017999,2]
[381494448,1756234238471,-300.0,0.00017999,2]
[381494450,1756234238481,-1036.48856282,0.00017999,5]
[381494451,1756234238490,-358.07806307,0.00017999,2]
[381494453,1756234238499,-500.0,0.00017999,2]
[381494455,1756234238508,-1294.94451402,0.00018,2]
[381494457,1756234238518,-7512.95714111,0.00018,2]
[381494459,1756234238528,-1194.12982178,0.00018,3]
[381494461,1756234238539,-12057577.30999795,0.00018,2]
[381494464,1756234238548,-387121.71161056,0.00018,2]
[381494466,1756234238560,-386.84074741,0.00018,2]
[381494468,1756234238572,-44493.1747141,0.00018,2]
[381494582,1756234239938,-16588.97014739,0.00018,2]
[381494591,1756234240014,-912.11371195,0.00018,2]
[381494600,1756234240102,-658.65935125,0.00018,2]
[381494602,1756234240114,-466.03318692,0.00018,2]
[381494620,1756234240279,-107921.70379123,0.00018,2]
[381494622,1756234240288,-108740.87023231,0.00018,2]
[381494624,1756234240299,-2212311.35796561,0.00018,2]
[381494626,1756234240309,-151.0,0.00018,2]
[381494628,1756234240319,-19518.35601135,0.00018,2]
[381494630,1756234240330,-17366.66688796,0.00018003,2]
[381494632,1756234240339,-13956.1758032,0.00018003,2]
[381494634,1756234240350,-302026.7150327,0.00018003,2]
[381494636,1756234240359,-8769.2197098,0.00018003,2]
[381494638,1756234240369,-150.0,0.00018006,2]
[381494640,1756234240379,-250.0,0.00018006,2]
[381494642,1756234240388,-1000.0,0.00018006,3]
[381494644,1756234240398,-500.0,0.00018054,2]
[381494646,1756234240407,-500.0,0.00018109,2]
[381494648,1756234240417,-167.01,0.00018116,2]
[381494650,1756234240426,-500.0,0.00018164,2]
[381494652,1756234240436,-734.80052189,0.00018206,2]
[381494654,1756234240446,-176.0,0.00018214,2]
[381494656,1756234240455,-500.0,0.00018219,2]
[381494658,1756234240464,-500.0,0.00018274,2]
[381494660,1756234240474,-500.0,0.00018329,2]
[381494662,1756234240484,-500.0,0.00018384,2]
[381494664,1756234240493,-151.0,0.00018394,2]
[381494666,1756234240503,-151.0,0.0001841,2]
[381494668,1756234240513,-151.0,0.00018437,2]
[381494670,1756234240523,-500.0,0.00018439,2]
[381494672,1756234240532,-500.0,0.00018494,2]
[381494674,1756234240542,-500.0,0.00018521,2]
[381494676,1756234240551,-1000.0,0.00018521,2]
[381494678,1756234240561,-500.0,0.00018521,2]
[381494680,1756234240571,-1000.0,0.00018521,2]
[381494681,1756234240581,-1000.0,0.00018521,2]
[381494683,1756234240591,-500.0,0.00018521,2]
[381494685,1756234240604,-152.9,0.000188,2]
[381494687,1756234240613,-152.9,0.000188,2]
[381494689,1756234240624,-152.9,0.000188,2]
[381494692,1756234240633,-152.9,0.000188,2]
[381494693,1756234240643,-152.9,0.000188,2]
[381494696,1756234240653,-152.9,0.000188,2]
[381494699,1756234240663,-152.9,0.000188,2]
[381494703,1756234240672,-152.9,0.000188,2]
[381494705,1756234240682,-152.9,0.000188,2]
[381494707,1756234240691,-152.9,0.000188,2]
[381494709,1756234240701,-152.9,0.000188,2]
[381494711,1756234240710,-152.9,0.000188,2]
[381494742,1756234241006,-152.9,0.000188,2]
[381494744,1756234241017,-152.9,0.000188,2]
[381494746,1756234241026,-152.9,0.000188,2]
[381494748,1756234241036,-152.9,0.000188,2]
[381494750,1756234241045,-152.9,0.000188,2]
[381494752,1756234241055,-152.9,0.000188,2]
[381494754,1756234241064,-152.9,0.000188,2]
[381494756,1756234241074,-152.9,0.000188,2]
[381494758,1756234241084,-152.9,0.000188,2]
[381494760,1756234241093,-152.9,0.000188,2]
[381494762,1756234241103,-152.9,0.000188,2]
[381494764,1756234241112,-152.9,0.000188,2]
[381494766,1756234241121,-152.9,0.000188,2]
[381494768,1756234241131,-152.9,0.000188,2]
[381494770,1756234241140,-152.9,0.000188,2]
[381494772,1756234241150,-152.9,0.000188,2]
[381494774,1756234241160,-152.9,0.000188,2]
[381494776,1756234241169,-152.9,0.000188,2]
[381494778,1756234241179,-152.9,0.000188,2]
[381494780,1756234241189,-152.9,0.000188,2]
[381494782,1756234241199,-152.9,0.000188,2]
[381494784,1756234241209,-2991.40736,0.0001882,2]
[381494786,1756234241218,-222.39487227,0.000189,2]
[381494788,1756234241228,-1377.77357953,0.00019,2]
[381494790,1756234241238,-1377.77357953,0.00019,2]
[381494792,1756234241247,-290.02527403,0.00019,2]
[381494794,1756234241257,-1000.0,0.00019032,2]
[381494796,1756234241266,-1500.0,0.00019068,2]
[381494798,1756234241276,-1500.0,0.00019068,2]
[381494800,1756234241287,-503.42014745,0.00019068,2]
[381494801,1756234241296,-151.0,0.00019178,2]
[381494803,1756234241306,-5000.0,0.00019178,2]
[381494805,1756234241316,-1680.0,0.00019197,2]
[381494807,1756234241329,-420.0,0.0001922,2]
[381494809,1756234241339,-272.94,0.00019246,2]
[381494812,1756234241349,-151.0,0.00019438,2]
[381494813,1756234241359,-322.6107,0.00019438,2]
[381494815,1756234241369,-156.587,0.00019438,2]
[381494818,1756234241379,-301.05877429,0.00019438,2]
[381494819,1756234241389,-2524.82941417,0.00019438,2]
[381494820,1756234241398,-300.0,0.00019438,2]
[381494821,1756234241407,-300.0,0.00019438,2]
[381494822,1756234241417,-300.0,0.00019438,2]
[381494823,1756234241426,-548.36854937,0.00019438,2]
[381494824,1756234241436,-300.0,0.00019438,2]
[381494825,1756234241446,-300.0,0.00019438,2]
[381494826,1756234241456,-300.0,0.00019438,2]
[381494827,1756234241465,-300.0,0.00019438,2]
[381494828,1756234241474,-300.0,0.00019438,2]
[381494829,1756234241484,-300.0,0.00019438,2]
[381494830,1756234241496,-300.0,0.00019438,2]
[381494831,1756234241507,-151.0,0.00019438,2]
[381494832,1756234241516,-322.0,0.00019438,2]
[381494833,1756234241525,-267.46074303,0.00019438,2]
[381494834,1756234241535,-151.0,0.00019438,2]
[381494835,1756234241547,-151.0,0.00019438,2]
[381494836,1756234241556,-695.39793187,0.00019438,2]
[381494837,1756234241566,-151.0,0.00019438,2]
[381494838,1756234241577,-151.0,0.00019438,2]
[381494839,1756234241587,-151.0,0.00019438,2]
[381494841,1756234241597,-151.0,0.00019438,2]
[381494842,1756234241607,-151.0,0.00019438,2]
[381494845,1756234241616,-341.84723564,0.00019438,2]
[381494847,1756234241626,-2618.2481025,0.00019493,2]
[381494848,1756234241635,-2715.12328229,0.00019548,2]
[381494850,1756234241645,-2815.58284374,0.00019603,2]
[381494853,1756234241655,-1582.39901521,0.00019616,2]
[381494855,1756234241665,-2000.0,0.00019616,2]
[381494856,1756234241675,-2919.75940895,0.00019658,2]
[381494859,1756234241685,-3027.79050709,0.00019713,2]